bitfinex/quotes_SOLUSD_20230102
["timestamp","ask_amount","ask_price","bid_price","bid_amount"]
[1672641891214,30.0,9.9799,9.973,30.0]
[1672641891613,30.0,9.9799,9.9726,30.0]
[1672641891837,54.9766,9.9799,9.9727,30.0]
[1672641893717,30.0,9.9797,9.9727,30.0]
[1672641893932,30.0,9.9795,9.9722,30.0]
[1672641894343,30.0,9.9795,9.9724,30.0]
[1672641894776,30.0,9.9795,9.9725,20.0]
[1672641895401,30.0,9.9795,9.9726,30.0]
[1672641897206,30.0,9.9795,9.9725,20.0]
[1672641897514,30.0,9.9795,9.9723,20.0]
[1672641898033,30.0,9.9795,9.9722,20.0]
[1672641898460,30.0,9.9795,9.9723,30.0]
[1672641898677,30.0,9.9795,9.9724,20.0]
[1672641899831,30.0,9.9795,9.9723,20.0]
[1672641900354,24.0839,9.9796,9.9722,20.0]
[1672641901493,24.0839,9.9796,9.9723,75.32]
[1672641901702,24.0839,9.9796,9.9725,30.0]
[1672641901922,24.0839,9.9796,9.9727,30.0]
[1672641905402,24.0839,9.9796,9.9728,75.32]
[1672641905603,24.0839,9.9796,9.9729,30.0]
[1672641905933,24.0839,9.9796,9.9726,75.32]
[1672641913380,24.0839,9.9796,9.9725,30.0]
[1672641913590,24.0839,9.9796,9.9726,20.0]
[1672641916450,24.0839,9.9796,9.9728,30.0]
[1672641916767,24.0839,9.9796,9.973,30.0]
[1672641919686,24.0839,9.9796,9.9732,30.0]
[1672641919903,24.0839,9.9796,9.9733,75.32]
[1672641920207,24.0839,9.9796,9.9734,30.0]
[1672641927568,24.0839,9.9796,9.9752,80.25952398]
[1672641938607,30.0,9.9795,9.9752,80.25952398]
[1672641938826,30.0,9.9795,9.9717,30.0]
[1672641939033,30.0,9.9795,9.9733,80.25952398]
[1672641945237,30.0,9.9795,9.9734,30.0]
[1672641945854,30.0,9.9795,9.9733,80.25952398]
[1672641952164,30.0,9.9795,9.9734,30.0]
[1672641953852,24.0839,9.9796,9.9734,30.0]
[1672641969027,24.0839,9.9796,9.9736,30.0]
[1672641969428,24.0839,9.9796,9.9738,30.0]
[1672641969863,24.0839,9.9796,9.9739,80.25952398]
[1672641971222,24.0839,9.9796,9.974,30.0]
[1672641971633,24.0839,9.9796,9.9742,30.0]
[1672641972061,24.0839,9.9796,9.9743,80.25952398]
[1672641972597,24.0839,9.9796,9.9744,30.0]
[1672641973012,24.0839,9.9796,9.9746,30.0]
[1672641973336,24.0839,9.9796,9.9747,80.25952398]
[1672641973967,24.0839,9.9796,9.9748,30.0]
[1672641974381,24.0839,9.9796,9.9749,80.25952398]
[1672641975003,24.0839,9.9796,9.975,30.0]
[1672641975411,24.0839,9.9796,9.9752,30.0]
[1672641975836,24.0839,9.9796,9.9754,30.0]
[1672641976263,24.0839,9.9796,9.9756,30.0]
[1672641976595,24.0839,9.9796,9.9757,80.25952398]
[1672641976784,24.0839,9.9796,9.9758,30.0]
[1672641976991,24.0839,9.9796,9.9757,80.25952398]
[1672641977309,24.0839,9.9796,9.976,30.0]
[1672641977731,24.0839,9.9796,9.9761,155.55952398]
[1672641977946,24.0839,9.9796,9.9762,30.0]
[1672641978157,24.0839,9.9796,9.9762,110.25952398]
[1672641978376,24.0839,9.9796,9.9763,80.25952398]
[1672641978566,24.0839,9.9796,9.9764,105.29]
[1672641978900,24.0839,9.9796,9.9766,30.0]
[1672641979328,24.207,9.9806,9.9767,80.25952398]
[1672641979518,24.207,9.9806,9.9768,30.0]
[1672641979943,24.207,9.9806,9.977,30.0]
[1672641980365,24.207,9.9806,9.9772,30.0]
[1672641980796,24.207,9.9806,9.9774,30.0]
[1672641981202,24.207,9.9806,9.9776,30.0]
[1672641981749,30.0,9.9845,9.9777,80.25952398]
[1672641982065,30.0,9.9845,9.9778,30.0]
[1672641982252,30.0,9.9845,9.9777,80.25952398]
[1672641982253,22.5693,9.9846,9.9777,80.25952398]
[1672641982585,22.5693,9.9846,9.9779,80.25952398]
[1672641985614,22.5693,9.9846,9.978,30.0]
[1672641986994,22.5693,9.9846,9.9779,80.25952398]
[1672641988670,22.5693,9.9846,9.978,30.0]
[1672641989734,22.5693,9.9846,9.9779,80.25952398]
[1672641990995,22.5693,9.9846,9.978,75.28]
[1672641996130,30.0,9.9845,9.9779,80.25952398]
[1672641996570,30.0,9.9845,9.9761,75.3]
[1672641996767,30.0,9.9843,9.9761,155.55952398]
[1672641996976,30.0,9.9843,9.9762,80.25952398]
[1672641997199,30.0,9.9843,9.9763,75.29]
[1672641997388,30.0,9.9841,9.9763,75.29]
[1672641997605,30.0,9.9841,9.9764,110.25952398]
[1672641997931,30.0,9.9841,9.9765,185.54952398]
[1672641998143,30.0,9.9839,9.9765,185.54952398]
[1672641998341,30.0,9.9839,9.9766,80.25952398]
[1672641998555,30.0,9.9839,9.9767,75.29]
[1672641998758,54.849,9.9839,9.9767,75.29]
[1672641999073,54.849,9.9839,9.9768,80.25952398]
[1672641999280,54.849,9.9839,9.9769,75.29]
[1672641999701,30.0,9.9838,9.9769,75.29]
[1672642000340,30.0,9.9838,9.9769,155.54952398]
[1672642006631,24.849,9.9839,9.9769,155.54952398]
[1672642007296,24.849,9.9839,9.977,30.0]
[1672642007515,24.849,9.9839,9.9771,75.29]
[1672642007701,24.849,9.9839,9.9771,80.25952398]
[1672642008036,24.849,9.9839,9.9772,155.54952398]
[1672642008247,30.0,9.9838,9.9772,155.54952398]
[1672642008440,24.849,9.9839,9.9772,155.54952398]
[1672642008644,24.849,9.9839,9.9772,75.29]
[1672642008858,24.849,9.9839,9.9773,80.25952398]
[1672642009080,30.0,9.9837,9.9774,75.29]
[1672642010861,135.2866,9.9838,9.9775,30.0]
[1672642011070,135.2866,9.9838,9.9776,75.28]
[1672642011385,135.2866,9.9838,9.9776,155.53952398]
[1672642012764,30.0,9.9837,9.9776,155.53952398]
[1672642013376,135.2866,9.9838,9.9776,155.53952398]
[1672642013591,75.13941996,9.9869,9.9777,156.64054745]
[1672642013810,214.7326,9.9899,9.98,5.69]
[1672642014025,139.5426,9.9898,9.9801,95.27]
[1672642014233,30.0,9.9897,9.9802,30.0]
[1672642014434,30.0,9.9897,9.9804,30.0]
[1672642014641,162.8544,9.9896,9.9805,75.26]
[1672642014860,30.0,9.9895,9.9806,20.0]
[1672642015066,30.0,9.9895,9.9807,75.26]
[1672642015399,30.0,9.9893,9.9808,20.0]
[1672642015590,30.0,9.9893,9.9809,75.26]
[1672642015800,30.0,9.9893,9.981,20.0]
[1672642015801,30.0,9.9891,9.981,20.0]
[1672642016014,30.0,9.9891,9.9811,75.26]
[1672642016234,30.0,9.9891,9.9812,20.0]
[1672642016441,53.5306,9.9891,9.9813,75.26]
[1672642016658,53.5306,9.9891,9.9814,20.0]
[1672642016875,53.5306,9.9891,9.9815,75.25]
[1672642017189,53.5306,9.9891,9.9816,20.0]
[1672642017414,53.5306,9.9891,9.9817,75.25]
[1672642017717,53.5306,9.9891,9.9818,20.0]
[1672642017917,53.5306,9.9891,9.9819,75.25]
[1672642018127,53.5306,9.9891,9.982,20.0]
[1672642018595,30.0,9.9889,9.982,20.0]
[1672642018894,30.0,9.9889,9.9809,20.0]
[1672642023003,30.0,9.9889,9.9809,100.25952398]
[1672642023435,30.0,9.9887,9.981,75.26]
[1672642023749,30.0,9.9887,9.9811,20.0]
[1672642023935,30.0,9.9887,9.9812,75.26]
[1672642024151,30.0,9.9887,9.9813,20.0]
[1672642024482,30.0,9.9887,9.9814,75.25]
[1672642024671,30.0,9.9887,9.9815,20.0]
[1672642025296,30.0,9.9887,9.9811,20.0]
[1672642025500,30.0,9.9887,9.9812,75.26]
[1672642025736,30.0,9.9887,9.9813,20.0]
[1672642025927,30.0,9.9887,9.9814,75.25]
[1672642026136,30.0,9.9887,9.9815,20.0]
[1672642026558,30.0,9.9887,9.9816,75.25]
[1672642026776,30.0,9.9887,9.9817,20.0]
[1672642027307,30.0,9.9887,9.9811,20.0]
[1672642027520,30.0,9.9887,9.9812,75.26]
[1672642027731,30.0,9.9887,9.9813,20.0]
[1672642028040,30.0,9.9887,9.9814,75.25]
[1672642028247,30.0,9.9887,9.9815,20.0]
[1672642028447,30.0,9.9887,9.9816,75.25]
[1672642028660,30.0,9.9887,9.9817,20.0]
[1672642029280,30.0,9.9887,9.9811,20.0]
[1672642029505,30.0,9.9887,9.9812,75.26]
[1672642029715,30.0,9.9887,9.9813,20.0]
[1672642029945,30.0,9.9887,9.9814,75.25]
[1672642030248,23.5306,9.9891,9.9815,20.0]
[1672642030463,23.5306,9.9891,9.9816,105.25]
[1672642030646,23.5306,9.9891,9.9816,277.69785531]
[1672642030856,23.5306,9.9891,9.9818,30.0]
[1672642031091,23.5306,9.9891,9.9819,75.25]
[1672642031316,30.0,9.989,9.982,20.0]
[1672642031490,30.0,9.989,9.9821,75.25]
[1672642031701,30.0,9.989,9.9822,20.0]
[1672642031917,30.0,9.989,9.9823,75.25]
[1672642032347,30.0,9.989,9.9824,100.25952398]
[1672642032560,30.0,9.989,9.9825,75.25]
[1672642032775,30.0,9.989,9.9826,20.0]
[1672642032965,30.0,9.989,9.9827,75.24]
[1672642033181,30.0,9.989,9.9827,155.49952398]
[1672642033507,30.0,9.989,9.9828,80.25952398]
[1672642033710,30.0,9.989,9.9829,75.24]
[1672642034126,30.0,9.989,9.983,80.25952398]
[1672642034332,30.0,9.989,9.9831,75.24]
[1672642036012,30.0,9.989,9.983,80.25952398]
[1672642040829,30.0,9.989,9.9831,75.24]
[1672642047655,30.0,9.989,9.9831,154.80375545]
[1672642051338,23.5306,9.9891,9.9831,154.80375545]
[1672642053689,30.0,9.989,9.9831,154.80375545]
[1672642063877,30.0,9.989,9.9831,152.30375545]
[1672642082804,30.0,9.9883,9.9701,30.0]
[1672642083013,100.1017,9.9882,9.9731,30.0]
[1672642083213,50.0,9.9881,9.9732,30.0]
[1672642083423,30.0,9.9879,9.9732,45.80730786]
[1672642083629,75.21,9.9878,9.9733,15.80730786]
[1672642083845,30.0,9.9877,9.9733,15.80730786]
[1672642084162,30.0,9.9875,9.9733,15.80730786]
[1672642084373,30.0,9.9873,9.9733,15.80730786]
[1672642084569,75.21,9.9872,9.9734,30.0]
[1672642084779,30.0,9.9871,9.9734,30.0]
[1672642085016,30.0,9.9869,9.9736,30.0]
[1672642085224,30.0,9.9867,9.9736,30.0]
[1672642085438,75.22,9.9866,9.9738,30.0]
[1672642085745,30.0,9.9865,9.9738,30.0]
[1672642085958,30.0,9.9863,9.9738,30.0]
[1672642086151,30.0,9.9861,9.9738,30.0]
[1672642086363,75.22,9.986,9.9738,30.0]
[1672642086701,30.0,9.9859,9.9738,30.0]
[1672642087008,192.4763,9.9859,9.974,30.0]
[1672642087195,30.0,9.9857,9.974,30.0]
[1672642087402,30.0,9.9857,9.9741,5.416]
[1672642087617,30.0,9.9855,9.9741,5.416]
[1672642088250,30.0,9.9853,9.9741,5.416]
[1672642088886,30.0,9.9851,9.9741,5.416]
[1672642089427,30.0,9.9849,9.9741,5.416]
[1672642089838,30.0,9.9849,9.9743,30.0]
[1672642090048,30.0,9.9847,9.9743,30.0]
[1672642090793,30.0,9.9845,9.9743,30.0]
[1672642091322,30.0,9.9843,9.9743,30.0]
[1672642091732,30.0,9.9841,9.9745,30.0]
[1672642091943,30.0,9.9841,9.9746,20.39]
[1672642092473,30.0,9.9839,9.9746,20.39]
[1672642092897,30.0,9.9837,9.9746,20.39]
[1672642093092,30.0,9.9837,9.9747,30.0]
[1672642093301,30.0,9.9837,9.9748,20.39]
[1672642093513,30.0,9.9835,9.9748,20.39]
[1672642094149,30.0,9.9833,9.9748,20.39]
[1672642094771,30.0,9.9831,9.9748,20.39]
[1672642095412,139.6425,9.9831,9.9748,20.39]
[1672642096041,24.2957,9.983,9.9748,20.39]
[1672642096682,24.2957,9.9829,9.9748,20.39]
[1672642097529,24.2957,9.9828,9.9748,20.39]
[1672642097933,23.4178,9.9827,9.9748,20.39]
[1672642098896,23.4178,9.9826,9.9748,20.39]
[1672642099512,23.4178,9.9825,9.9748,20.39]
[1672642100263,23.4178,9.9824,9.9748,20.39]
[1672642100995,24.9613,9.9823,9.9748,20.39]
[1672642101609,24.9613,9.9822,9.9748,20.39]
[1672642102050,24.9613,9.9822,9.9749,30.0]
[1672642102241,24.9613,9.9822,9.9751,30.0]
[1672642102457,24.9613,9.9822,9.9752,25.8]
[1672642102667,24.9613,9.9822,9.9753,30.0]
[1672642102873,24.9613,9.9822,9.9754,25.8]
[1672642103303,24.9613,9.9822,9.9755,30.0]
[1672642103631,24.9613,9.9822,9.9756,25.8]
[1672642112756,30.0,9.9821,9.9756,25.8]
[1672642119581,24.9613,9.9822,9.9756,25.8]
[1672642141995,30.0,9.9821,9.9756,25.8]
[1672642142400,24.9613,9.9822,9.9756,25.8]
[1672642142822,30.0,9.9821,9.9756,25.8]
[1672642145785,24.9613,9.9822,9.9756,25.8]
[1672642148081,30.0,9.9821,9.9756,25.8]
[1672642151367,24.9613,9.9822,9.9756,25.8]
[1672642154497,30.0,9.9821,9.9756,25.8]
[1672642155364,24.9613,9.9822,9.9756,25.8]
[1672642156292,30.0,9.9821,9.9756,25.8]
[1672642170276,30.0,9.9821,9.9727,25.83]
[1672642170482,30.0,9.9819,9.9729,30.0]
[1672642170699,30.0,9.9819,9.973,25.83]
[1672642171222,30.0,9.9817,9.9727,25.83]
[1672642171956,30.0,9.9815,9.9727,25.83]
[1672642172581,30.0,9.9813,9.9727,25.83]
[1672642173213,30.0,9.9811,9.9727,25.83]
[1672642173867,30.0,9.9809,9.9727,25.83]
[1672642174704,142.9291,9.9809,9.9727,25.83]
[1672642175312,30.0,9.9807,9.9727,25.83]
[1672642176159,30.0,9.9805,9.9726,0.2461428]
[1672642177018,30.0,9.9803,9.9726,0.2461428]
[1672642177629,30.0,9.9801,9.9726,0.2461428]
[1672642178255,30.0,9.9801,9.9727,25.84]
[1672642178256,30.0,9.9799,9.9727,25.84]
[1672642179119,30.0,9.9799,9.9726,0.2461428]
[1672642179736,30.0,9.9797,9.9726,0.2461428]
[1672642186997,30.0,9.9795,9.9726,0.2461428]
[1672642187851,30.0,9.9793,9.9726,0.2461428]
[1672642188167,30.0,9.9791,9.9726,0.2461428]
[1672642193735,30.0,9.9789,9.9726,0.2461428]
[1672642208260,30.0,9.9787,9.9726,0.2461428]
[1672642224435,75.27,9.9788,9.9726,0.2461428]
[1672642224655,75.26,9.981,9.9727,15.80730786]
[1672642224853,30.0,9.9825,9.9728,30.0]
[1672642225063,75.25,9.9824,9.9728,146.70714588]
[1672642225273,75.25,9.9824,9.9729,116.70714588]
[1672642225485,75.24,9.9834,9.973,30.0]
[1672642225689,75.24,9.9834,9.973,162.51445374]
[1672642225906,30.0,9.9833,9.9732,30.0]
[1672642226132,75.24,9.9832,9.9732,30.0]
[1672642226339,75.24,9.9832,9.9734,30.0]
[1672642226551,75.24,9.9832,9.9738,30.0]
[1672642227087,75.24,9.9832,9.9739,132.51445374]
[1672642227270,75.24,9.9832,9.974,30.0]
[1672642227480,75.24,9.9834,9.9741,30.0]
[1672642227690,75.24,9.9834,9.9742,30.0]
[1672642227906,75.24,9.9834,9.9742,45.80730786]
[1672642228112,75.24,9.9834,9.9744,30.0]
[1672642228533,75.24,9.9834,9.9746,30.0]
[1672642228974,75.24,9.9834,9.9748,30.0]
[1672642229286,75.24,9.9834,9.975,30.0]
[1672642229714,75.24,9.9834,9.9751,70.49277039]
[1672642229925,75.24,9.9834,9.9752,30.0]
[1672642230453,75.21,9.9875,9.9756,299.9]
[1672642230758,75.2,9.9894,9.98,28.53]
[1672642230960,98.2193,9.9894,9.9801,50.0]
[1672642231182,98.2193,9.9894,9.9802,30.0]
[1672642231369,98.2193,9.9894,9.9803,20.0]
[1672642231577,30.0,9.9892,9.9804,30.0]
[1672642231792,30.0,9.989,9.9805,20.0]
[1672642232001,75.2,9.9889,9.9806,30.0]
[1672642232315,75.2,9.9889,9.9807,20.0]
[1672642232852,75.2,9.9889,9.9808,129.46202241]
[1672642233059,75.2,9.9889,9.9809,30.0]
[1672642233264,75.2,9.9889,9.981,20.0]
[1672642233580,75.2,9.9889,9.981,90.86168335]
[1672642233791,23.0193,9.989,9.9811,30.0]
[1672642234214,30.0,9.9889,9.9812,20.0]
[1672642234549,30.0,9.9887,9.9812,20.0]
[1672642234754,75.2,9.9886,9.9812,20.0]
[1672642234967,30.0,9.9887,9.9812,20.0]
[1672642235601,30.0,9.9887,9.9812,50.0]
[1672642235996,30.0,9.9887,9.9813,30.0]
[1672642236203,24.9591,9.9889,9.9813,30.0]
[1672642236414,75.2,9.9888,9.9815,30.0]
[1672642236854,75.2,9.9888,9.9816,20.0]
[1672642237580,75.2,9.9888,9.9816,50.0]
[1672642237790,75.2,9.9888,9.9817,129.46202241]
[1672642237995,24.9591,9.9889,9.9819,30.0]
[1672642238205,24.9591,9.9889,9.982,20.0]
[1672642238415,24.9591,9.9889,9.9821,30.0]
[1672642238626,24.9591,9.9889,9.9823,30.0]
[1672642238830,24.9591,9.9889,9.9825,30.0]
[1672642239272,24.9591,9.9889,9.9826,20.0]
[1672642239468,24.9591,9.9889,9.9827,30.0]
[1672642240214,24.9591,9.9889,9.9827,100.86168335]
[1672642240644,24.9591,9.9889,9.9827,130.86168335]
[1672642244097,24.9591,9.9889,9.9827,100.86168335]
[1672642245144,24.9591,9.9889,9.9828,30.0]
[1672642245369,24.9591,9.9889,9.9828,60.0]
[1672642248727,24.9591,9.9889,9.9829,70.86168335]
[1672642248931,24.9591,9.9889,9.9829,100.86168335]
[1672642249343,30.0,9.9895,9.9829,100.86168335]
[1672642249344,600.45767985,10.005,9.983,165.26933027]
[1672642249575,600.45767985,10.005,9.9831,30.0]
[1672642249576,30.0,9.9998,9.9831,30.0]
[1672642249888,30.0,9.9996,9.9833,30.0]
[1672642250105,30.0,9.9994,9.9833,30.0]
[1672642250411,30.0,9.9992,9.9835,30.0]
[1672642250624,75.12,9.9991,9.9835,30.0]
[1672642250837,30.0,9.999,9.9837,30.0]
[1672642251025,75.12,9.9989,9.9838,20.0]
[1672642251236,30.0,9.9988,9.9839,30.0]
[1672642251448,171.0895,9.9988,9.9839,301.78696576]
[1672642251765,30.0,9.9986,9.9841,30.0]
[1672642251973,30.0,9.9986,9.9841,60.0]
[1672642252189,30.0,9.9986,9.9843,30.0]
[1672642252402,30.0,9.9986,9.9845,30.0]
[1672642252606,30.0,9.9984,9.9845,30.0]
[1672642252828,30.0,9.9984,9.9846,168.19591884]
[1672642253146,30.0,9.9984,9.9847,107.33423549]
[1672642253355,30.0,9.9982,9.9849,30.0]
[1672642253550,30.0,9.998,9.9849,30.0]
[1672642253759,75.13,9.9979,9.985,168.19591884]
[1672642253971,30.0,9.9978,9.9851,30.0]
[1672642254287,30.0,9.9978,9.9853,30.0]
[1672642254620,30.0,9.9976,9.9855,30.0]
[1672642254832,30.0,9.9976,9.9857,30.0]
[1672642255141,30.0,9.9974,9.9859,30.0]
[1672642255354,30.0,9.9974,9.986,20.0]
[1672642255546,30.0,9.9974,9.9861,30.0]
[1672642255758,30.0,9.9974,9.9863,30.0]
[1672642255964,30.0,9.9974,9.9863,60.0]
[1672642256173,30.0,9.9974,9.9864,70.86168335]
[1672642256383,30.0,9.9974,9.9866,30.0]
[1672642256600,30.0,9.9974,9.9867,20.0]
[1672642256826,145.1858,9.9974,9.9868,30.0]
[1672642257036,145.1858,9.9974,9.987,30.0]
[1672642257229,145.1858,9.9974,9.9872,30.0]
[1672642257443,30.0,9.9972,9.9872,30.0]
[1672642257754,30.0,9.9972,9.9873,20.0]
[1672642257958,30.0,9.9972,9.9874,30.0]
[1672642258373,30.0,9.9972,9.9876,30.0]
[1672642258596,30.0,9.997,9.9876,30.0]
[1672642258827,30.0,9.997,9.9878,30.0]
[1672642259022,30.0,9.997,9.9878,60.0]
[1672642259218,30.0,9.997,9.988,30.0]
[1672642259636,30.0,9.997,9.9882,30.0]
[1672642259861,30.0,9.997,9.9883,20.0]
[1672642260083,30.0,9.997,9.9884,30.0]
[1672642260286,30.0,9.997,9.9885,20.0]
[1672642260480,30.0,9.9968,9.9886,30.0]
[1672642260687,30.0,9.9968,9.9888,30.0]
[1672642260902,30.0,9.9968,9.9889,20.0]
[1672642261111,30.0,9.9968,9.989,30.0]
[1672642261344,30.0,9.9968,9.9891,20.0]
[1672642261759,30.0,9.9968,9.9892,15.80730786]
[1672642262376,30.0,9.9968,9.9893,20.0]
[1672642262600,30.0,9.9966,9.9893,20.0]
[1672642262799,30.0,9.9966,9.9894,15.80730786]
[1672642263447,30.0,9.9966,9.9895,20.0]
[1672642264998,30.0,9.9964,9.9895,20.0]
[1672642266482,30.0,9.9964,9.9895,35.80730786]
[1672642266897,30.0,9.9964,9.9896,30.0]
[1672642267109,54.7127,9.9964,9.9897,20.0]
[1672642269014,54.7127,9.9964,9.9899,30.0]
[1672642269318,54.7127,9.9964,9.99,35.80730786]
[1672642269637,54.7127,9.9964,9.9901,15.80730786]
[1672642269847,54.7127,9.9964,9.9902,20.0]
[1672642270170,54.7127,9.9964,9.9903,15.80730786]
[1672642270491,54.7127,9.9964,9.9903,35.80730786]
[1672642271421,54.7127,9.9964,9.9903,106.66899121]
[1672642286372,54.7127,9.9964,9.9903,90.86168335]
[1672642286897,30.0,9.9962,9.9903,90.86168335]
[1672642291298,30.0,9.9962,9.9903,106.66899121]
[1672642319290,30.0,9.9962,9.9903,35.80730786]
[1672642320533,30.0,9.9962,9.9903,20.0]
[1672642320738,30.0,9.9962,9.9897,20.0]
[1672642321050,30.0,9.9962,9.9898,30.0]
[1672642321277,30.0,9.9962,9.9899,20.0]
[1672642321797,30.0,9.9962,9.9897,20.0]
[1672642322016,54.6612,9.9962,9.9897,20.0]
[1672642323359,30.0,9.996,9.9897,20.0]
[1672642329569,30.0,9.996,9.9885,20.0]
[1672642329910,30.0,9.9958,9.989,138.74925217]
[1672642330091,30.0,9.9958,9.9891,20.0]
[1672642330305,30.0,9.9956,9.9891,20.0]
[1672642330726,30.0,9.9956,9.9892,30.0]
[1672642330937,54.3835,9.9956,9.9892,30.0]
[1672642331354,54.3835,9.9956,9.9893,20.0]
[1672642331898,54.3835,9.9956,9.9895,30.0]
[1672642332418,54.3835,9.9956,9.9896,20.0]
[1672642332736,54.3835,9.9956,9.9897,15.80730786]
[1672642333272,54.3835,9.9956,9.9898,20.0]
[1672642333671,54.3835,9.9956,9.9899,15.80730786]
[1672642333897,54.3835,9.9956,9.99,20.0]
[1672642334206,54.3835,9.9956,9.9901,15.80730786]
[1672642334425,54.3835,9.9956,9.9902,20.0]
[1672642334838,54.3835,9.9956,9.9903,15.80730786]
[1672642335258,54.3835,9.9956,9.9903,35.80730786]
[1672642339346,54.3835,9.9956,9.9903,20.0]
[1672642339767,54.3835,9.9956,9.9871,15.80730786]
[1672642339989,30.0,9.9954,9.9873,30.0]
[1672642340199,30.0,9.9954,9.9874,20.0]
[1672642340813,30.0,9.9952,9.9874,20.0]
[1672642341019,75.15,9.9951,9.9876,30.0]
[1672642341233,30.0,9.995,9.9877,20.0]
[1672642341443,54.7789,9.995,9.9877,20.0]
[1672642342091,24.7789,9.9949,9.9877,20.0]
[1672642342306,30.0,9.9948,9.9877,20.0]
[1672642342714,30.0,9.9946,9.9877,20.0]
[1672642342939,30.0,9.9946,9.9872,20.0]
[1672642343343,30.0,9.9944,9.9872,20.0]
[1672642343774,30.0,9.9944,9.9872,35.80730786]
[1672642344090,30.0,9.9942,9.9872,35.80730786]
[1672642344614,30.0,9.994,9.9872,35.80730786]
[1672642345235,52.9171,9.994,9.9872,35.80730786]
[1672642345760,52.9171,9.994,9.9873,30.0]
[1672642345976,52.9171,9.994,9.9874,20.0]
[1672642346189,52.9171,9.994,9.9874,35.80730786]
[1672642346508,52.9171,9.994,9.9875,15.80730786]
[1672642347032,52.9171,9.994,9.9876,20.0]
[1672642347354,52.9171,9.994,9.9876,35.80730786]
[1672642369231,52.9171,9.994,9.9877,30.0]
[1672642369420,52.9171,9.994,9.9878,20.0]
[1672642369631,52.9171,9.994,9.9878,35.80730786]
[1672642369948,52.9171,9.994,9.9879,15.80730786]
[1672642370157,52.9171,9.994,9.988,20.0]
[1672642370482,52.9171,9.994,9.9881,15.80730786]
[1672642370805,52.9171,9.994,9.9882,20.0]
[1672642371442,52.9171,9.994,9.9882,35.80730786]
[1672642376815,52.9171,9.994,9.9882,20.0]
[1672642377022,52.9171,9.994,9.9873,20.0]
[1672642377222,52.9171,9.994,9.9882,15.80730786]
[1672642377873,52.9171,9.994,9.9883,20.0]
[1672642394586,52.9171,9.994,9.9883,35.80730786]
[1672642397975,52.9171,9.994,9.9883,20.0]
[1672642398168,52.9171,9.994,9.985,20.0]
[1672642398383,30.0,9.9938,9.9864,15.80730786]
[1672642398591,30.0,9.9938,9.9865,20.0]
[1672642399126,30.0,9.9936,9.9865,20.0]
[1672642399530,30.0,9.9936,9.9865,35.80730786]
[1672642399860,30.0,9.9934,9.9865,35.80730786]
[1672642400267,54.989,9.9934,9.9865,35.80730786]
[1672642401010,54.989,9.9934,9.9866,30.0]
[1672642401220,54.989,9.9934,9.9867,20.0]
[1672642402073,54.989,9.9934,9.9868,30.0]
[1672642402262,54.989,9.9934,9.9869,20.0]
[1672642406173,54.989,9.9934,9.987,15.80730786]
[1672642406369,54.989,9.9934,9.9871,20.0]
[1672642406811,54.989,9.9934,9.9872,15.80730786]
[1672642407226,54.989,9.9934,9.9873,20.0]
[1672642407654,54.989,9.9934,9.9874,15.80730786]
[1672642407867,54.989,9.9934,9.9875,20.0]
[1672642408175,54.989,9.9934,9.9876,15.80730786]
[1672642408369,54.989,9.9934,9.9877,20.0]
[1672642408703,54.989,9.9934,9.9878,15.80730786]
[1672642408917,54.989,9.9934,9.9879,20.0]
[1672642409325,54.989,9.9934,9.988,15.80730786]
[1672642409841,54.989,9.9934,9.9881,20.0]
[1672642410171,54.989,9.9934,9.9881,35.80730786]
[1672642445494,54.989,9.9934,9.9881,20.0]
[1672642445703,54.989,9.9934,9.9865,15.80730786]
[1672642445915,54.989,9.9934,9.9866,50.0]
[1672642448647,54.989,9.9934,9.9867,45.80730786]
[1672642448841,54.989,9.9934,9.9868,20.0]
[1672642449067,54.989,9.9934,9.9868,35.80730786]
[1672642449279,54.989,9.9934,9.9869,15.80730786]
[1672642449799,54.989,9.9934,9.987,20.0]
[1672642450322,54.989,9.9934,9.9871,15.80730786]
[1672642450743,54.989,9.9934,9.9872,20.0]
[1672642451171,54.989,9.9934,9.9873,15.80730786]